fUSD/lending_fUSD_20240412
["ID","MTS","AMOUNT","RATE_DAILY","PERIOD"]
[322305436,1712943065449,-393.60491771,0.00047671,31]
[322305437,1712943065460,-500.0,0.00047671,31]
[322305438,1712943065470,-500.0,0.00047671,31]
[322305439,1712943065481,-500.0,0.00047671,31]
[322305440,1712943065492,-500.0,0.00047671,31]
[322305441,1712943065505,-500.0,0.00047671,31]
[322305442,1712943065516,-500.0,0.00047671,31]
[322305443,1712943065525,-352.1640926,0.00047671,31]
[322305444,1712943065537,-500.0,0.00047671,31]
[322305445,1712943065550,-500.0,0.00047671,31]
[322305446,1712943065562,-500.0,0.00047671,31]
[322305447,1712943065572,-500.0,0.00047671,31]
[322305448,1712943065583,-500.0,0.00047671,31]
[322305449,1712943065594,-533.02,0.00047671,2]
[322305450,1712943065605,-500.0,0.00047671,31]
[322305451,1712943065616,-500.0,0.00047671,31]
[322305452,1712943065627,-500.0,0.00047671,31]
[322305453,1712943065637,-500.0,0.00047671,31]
[322305454,1712943065650,-500.0,0.00047671,31]
[322305455,1712943065661,-500.0,0.00047671,31]
[322305456,1712943065672,-320.7134415,0.00047671,31]
[322305457,1712943065686,-953.04,0.00047671,31]
[322305458,1712943065697,-500.0,0.00047671,31]
[322305459,1712943065709,-500.0,0.00047671,31]
[322305460,1712943065719,-500.0,0.00047671,31]
[322305461,1712943065733,-500.0,0.00047671,31]
[322305462,1712943065743,-500.0,0.00047671,31]
[322305463,1712943065754,-500.0,0.00047671,31]
[322305464,1712943065764,-500.0,0.00047671,31]
[322305465,1712943065775,-500.0,0.00047671,31]
[322305466,1712943065785,-500.0,0.00047671,31]
[322305467,1712943065796,-500.0,0.00047671,31]
[322305468,1712943065807,-500.0,0.00047671,31]
[322305469,1712943065820,-500.0,0.00047671,31]
[322305470,1712943065832,-500.0,0.00047671,31]
[322305471,1712943065842,-500.0,0.00047671,31]
[322305472,1712943065852,-500.0,0.00047671,31]
[322305473,1712943065864,-500.0,0.00047671,31]
[322305474,1712943065874,-500.0,0.00047671,31]
[322305475,1712943065884,-500.0,0.00047671,31]
[322305476,1712943065894,-503.14,0.00047671,31]
[322305477,1712943065905,-500.0,0.00047671,31]
[322305478,1712943065916,-500.0,0.00047671,31]
[322305479,1712943065926,-500.0,0.00047671,31]
[322305480,1712943065936,-500.0,0.00047671,31]
[322305481,1712943065947,-500.0,0.00047671,31]
[322305482,1712943065957,-500.0,0.00047671,31]
[322305483,1712943065966,-500.0,0.00047671,31]
[322305484,1712943065975,-500.0,0.00047671,31]
[322305485,1712943065985,-500.0,0.00047671,31]
[322305486,1712943065994,-500.0,0.00047671,31]
[322305487,1712943066005,-161.12324,0.00047671,31]
[322305488,1712943066015,-500.0,0.00047671,31]
[322305489,1712943066026,-500.0,0.00047671,31]
[322305490,1712943066036,-262.47693035,0.00047671,31]
[322305491,1712943066046,-181.48732105,0.00047671,31]
[322305492,1712943066056,-500.0,0.00047671,31]
[322305493,1712943066067,-500.0,0.00047671,31]
[322305494,1712943066078,-547.94,0.00047671,31]
[322305495,1712943066088,-500.0,0.00047671,31]
[322305496,1712943066098,-500.0,0.00047671,31]
[322305497,1712943066109,-500.0,0.00047671,31]
[322305498,1712943066119,-171.90037669,0.00047671,31]
[322305499,1712943066130,-500.0,0.00047671,2]
[322305500,1712943066140,-500.0,0.00047671,31]
[322305501,1712943066151,-402.05407907,0.00047671,31]
[322305502,1712943066161,-500.0,0.00047671,31]
[322305503,1712943066171,-500.0,0.00047671,31]
[322305504,1712943066183,-500.0,0.00047671,31]
[322305505,1712943066198,-500.0,0.00047671,31]
[322305506,1712943066209,-500.0,0.00047671,31]
[322305507,1712943066219,-500.0,0.00047671,31]
[322305508,1712943066233,-500.0,0.00047671,31]
[322305509,1712943066243,-500.0,0.00047671,31]
[322305510,1712943066253,-506.79,0.00047671,31]
[322305511,1712943066264,-500.0,0.00047671,31]
[322305512,1712943066276,-500.0,0.00047671,31]
[322305513,1712943066286,-500.0,0.00047671,31]
[322305514,1712943066295,-753.97,0.00047671,31]
[322305515,1712943066305,-500.0,0.00047671,31]
[322305516,1712943066316,-500.0,0.00047671,31]
[322305517,1712943066326,-761.02,0.00047671,31]
[322305518,1712943066336,-1116.32,0.00047671,31]
[322305519,1712943066346,-500.0,0.00047671,31]
[322305520,1712943066356,-1571.11,0.00047671,31]
[322305521,1712943066490,-349.35,0.00047671,31]
[322305522,1712943066502,-525.84,0.00047671,31]
[322305523,1712943066513,-500.0,0.00047671,31]
[322305524,1712943066523,-771.53,0.00047671,31]
[322305525,1712943066533,-688.0,0.00047671,31]
[322305526,1712943066545,-500.0,0.00047671,31]
[322305527,1712943066555,-768.13,0.00047671,31]
[322305528,1712943066567,-4824.5,0.00047671,31]
[322305529,1712943066578,-500.0,0.00047671,31]
[322305530,1712943066589,-1199.86,0.00047671,31]
[322305531,1712943066600,-500.0,0.00047671,31]
[322305532,1712943066611,-500.0,0.00047671,31]
[322305533,1712943066622,-500.0,0.00047671,31]
[322305534,1712943066633,-500.0,0.00047671,31]
[322305535,1712943066645,-575.91,0.00047671,31]
[322305536,1712943066656,-500.0,0.00047671,31]
[322305537,1712943066665,-585.03,0.00047671,31]
[322305538,1712943066676,-1185.31,0.00047671,31]
[322305539,1712943066690,-664.52,0.00047671,31]
[322305540,1712943066700,-690.39,0.00047671,31]
[322305541,1712943066710,-500.0,0.00047671,31]
[322305542,1712943066722,-2922.2,0.00047671,31]
[322305543,1712943066732,-500.0,0.00047671,31]
[322305544,1712943066742,-1072.1,0.00047671,31]
[322305545,1712943066752,-630.53,0.00047671,31]
[322305546,1712943066763,-500.0,0.00047671,31]
[322305547,1712943066773,-817.79,0.00047671,31]
[322305548,1712943066783,-500.0,0.00047671,31]
[322305549,1712943066793,-500.0,0.00047671,31]
[322305550,1712943066804,-500.0,0.00047671,31]
[322305551,1712943066816,-11147.25,0.00047671,31]
[322305552,1712943066830,-2674.46,0.00047671,31]
[322305553,1712943066841,-1664.34,0.00047671,31]
[322305554,1712943066852,-500.0,0.00047671,31]
[322305555,1712943066862,-500.0,0.00047671,31]
[322305556,1712943066884,-500.0,0.00047671,31]
[322305557,1712943066896,-1490.98,0.00047671,31]
[322305558,1712943066908,-500.0,0.00047671,31]
[322305559,1712943066919,-500.0,0.00047671,31]
[322305560,1712943066931,-532.17,0.00047671,31]
[322305561,1712943066947,-2085.05,0.00047671,31]
[322305562,1712943066958,-500.0,0.00047671,31]
[322305563,1712943066969,-500.0,0.00047671,31]
[322305564,1712943066979,-842.21,0.00047671,31]
[322305565,1712943066989,-500.0,0.00047671,31]
[322305566,1712943066999,-500.0,0.00047671,21]
[322305567,1712943067010,-707.65,0.00047671,31]
[322305568,1712943067020,-500.0,0.00047671,31]
[322305569,1712943067030,-500.0,0.00047671,31]
[322305570,1712943067041,-500.0,0.00047671,31]
[322305571,1712943067051,-500.0,0.00047671,31]
[322305572,1712943067062,-754.73,0.00047671,31]
[322305573,1712943067071,-651.77,0.00047671,31]
[322305574,1712943067082,-930.65,0.00047671,31]
[322305575,1712943067092,-500.0,0.00047671,31]
[322305576,1712943067102,-336.56,0.00047671,31]
[322305577,1712943067112,-500.0,0.00047671,31]
[322305578,1712943067122,-566.71,0.00047671,31]
[322305579,1712943067133,-500.0,0.00047671,31]
[322305580,1712943067143,-500.0,0.00047671,31]
[322305581,1712943067154,-500.0,0.00047671,31]
[322305582,1712943067164,-500.0,0.00047671,31]
[322305583,1712943067174,-500.0,0.00047671,31]
[322305584,1712943067190,-500.0,0.00047671,31]
[322305585,1712943067200,-500.0,0.00047671,31]
[322305586,1712943067210,-500.0,0.00047671,31]
[322305587,1712943067221,-500.0,0.00047671,7]
[322305588,1712943067233,-500.0,0.00047671,31]
[322305589,1712943067243,-500.0,0.00047671,31]
[322305590,1712943067252,-558.76,0.00047671,31]
[322305591,1712943067262,-500.0,0.00047671,31]
[322305592,1712943067272,-2201.95,0.00047671,31]
[322305593,1712943067283,-500.0,0.00047671,31]
[322305594,1712943067293,-500.0,0.00047671,31]
[322305595,1712943067304,-500.0,0.00047671,31]
[322305596,1712943067313,-500.0,0.00047671,31]
[322305597,1712943067323,-1733.44,0.00047671,31]
[322305598,1712943067333,-500.0,0.00047671,31]
[322305599,1712943067342,-500.0,0.00047671,31]
[322305600,1712943067352,-500.0,0.00047671,31]
[322305601,1712943067362,-1511.61,0.00047671,31]
[322305602,1712943067372,-500.0,0.00047671,31]
[322305603,1712943067383,-500.0,0.00047671,31]
[322305604,1712943067393,-500.0,0.00047671,31]
[322305605,1712943067402,-500.0,0.00047671,31]
[322305606,1712943067412,-500.0,0.00047671,31]
[322305607,1712943067422,-1300.84,0.00047671,31]
[322305608,1712943067433,-500.0,0.00047671,31]
[322305609,1712943067444,-558.49,0.00047671,31]
[322305610,1712943067453,-194.87,0.00047671,31]
[322305611,1712943067463,-959.18,0.00047671,31]
[322305612,1712943067473,-500.0,0.00047671,31]
[322305613,1712943067485,-921.12,0.00047671,31]
[322305614,1712943067494,-500.0,0.00047671,31]
[322305615,1712943067507,-500.0,0.00047671,31]
[322305616,1712943067517,-500.0,0.00047671,31]
[322305617,1712943067528,-802.81,0.00047671,31]
[322305618,1712943067538,-500.0,0.00047671,31]
[322305619,1712943067551,-2186.79,0.00047671,31]
[322305620,1712943067561,-500.0,0.00047671,31]
[322305621,1712943067571,-1066.91,0.00047671,31]
[322305622,1712943067582,-2219.87,0.00047671,31]
[322305623,1712943067592,-500.0,0.00047671,31]
[322305624,1712943067603,-500.0,0.00047671,31]
[322305625,1712943067613,-500.0,0.00047671,31]
[322305626,1712943067622,-593.49,0.00047671,31]
[322305627,1712943067631,-500.0,0.00047671,31]
[322305628,1712943067641,-6085.26,0.00047671,31]
[322305629,1712943067652,-500.0,0.00047671,31]
[322305630,1712943067661,-500.0,0.00047671,31]
[322305631,1712943067671,-500.0,0.00047671,31]
[322305632,1712943067684,-500.0,0.00047671,31]
[322305633,1712943067695,-500.0,0.00047671,31]
[322305634,1712943067706,-500.0,0.00047671,31]
[322305635,1712943067716,-500.0,0.00047671,31]
[322305636,1712943067729,-500.0,0.00047671,31]
[322305637,1712943067738,-683.18,0.00047671,31]
[322305638,1712943067747,-500.0,0.00047671,31]
[322305639,1712943067757,-1289.09,0.00047671,31]
[322305640,1712943067767,-2118.68,0.00047671,31]
[322305641,1712943067778,-500.0,0.00047671,31]
[322305642,1712943067788,-646.23677267,0.00047671,31]
[322305643,1712943067798,-842.4,0.00047671,31]
[322305644,1712943067808,-542.64,0.00047671,31]
[322305645,1712943067819,-500.0,0.00047671,31]
[322305646,1712943067829,-500.0,0.00047671,31]
[322305647,1712943067839,-674.83,0.00047671,31]
[322305648,1712943067849,-1964.08,0.00047671,31]
[322305649,1712943067859,-458.78085441,0.00047671,31]
[322305650,1712943067869,-500.0,0.00047671,31]
[322305651,1712943067879,-500.0,0.00047671,31]
[322305652,1712943067889,-2132.39,0.00047671,31]
[322305653,1712943067899,-155.47,0.000477,5]
[322305654,1712943067909,-152.59,0.000477,5]
[322305655,1712943067920,-152.59,0.000477,5]
[322305656,1712943067930,-152.59,0.000477,5]
[322305657,1712943067943,-152.59,0.000477,5]
[322305658,1712943067954,-168.88618113,0.00047755,30]
[322305659,1712943067965,-154.52750018,0.00047815,67]
[322305660,1712943067978,-500.0,0.00047842,30]
[322305661,1712943067988,-158.43882462,0.0004792,30]
[322305662,1712943067998,-500.0,0.00047945,31]
[322305663,1712943068008,-500.0,0.00047945,31]
[322305664,1712943068018,-500.0,0.00047945,31]
[322305665,1712943068028,-500.0,0.00047945,31]
[322305666,1712943068038,-500.0,0.00047945,31]
[322305667,1712943068047,-204.02,0.00047945,2]
[322305668,1712943068057,-500.0,0.00047945,31]
[322305669,1712943068067,-500.0,0.00047945,31]
[322305670,1712943068077,-502.0,0.00047945,31]
[322305671,1712943068087,-500.0,0.00047945,31]
[322305672,1712943068101,-1000.0,0.00047945,120]
[322305673,1712943068111,-500.0,0.00047945,31]
[322305674,1712943068120,-608.51,0.00047945,31]
[322305675,1712943068131,-536.64,0.00047945,31]
[322305676,1712943068142,-500.0,0.00047945,31]
[322305677,1712943068151,-618.52,0.00047945,31]
[322305678,1712943068161,-500.0,0.00047945,31]
[322305679,1712943068171,-500.0,0.00047945,31]
[322305680,1712943068183,-500.0,0.00047945,31]
[322305681,1712943068195,-500.0,0.00047945,31]
[322305682,1712943068206,-500.0,0.00047945,31]
[322305683,1712943068216,-500.0,0.00047945,31]
[322305684,1712943068229,-500.0,0.00047945,31]
[322305685,1712943068238,-500.0,0.00047945,31]
[322305686,1712943068248,-500.0,0.00047945,31]
[322305687,1712943068257,-500.0,0.00047945,31]
[322305688,1712943068267,-500.0,0.00047945,31]
[322305689,1712943068276,-500.0,0.00047945,31]
[322305690,1712943068285,-500.0,0.00047945,31]
[322305691,1712943068295,-533.02,0.00047945,2]
[322305692,1712943068304,-500.0,0.00047945,31]
[322305693,1712943068314,-500.0,0.00047945,31]
[322305694,1712943068324,-500.0,0.00047945,31]
[322305695,1712943068335,-500.0,0.00047945,31]
[322305696,1712943068345,-500.0,0.00047945,31]
[322305697,1712943068354,-500.0,0.00047945,31]
[322305698,1712943068363,-953.04,0.00047945,31]
[322305699,1712943068373,-500.0,0.00047945,31]
[322305700,1712943068383,-500.0,0.00047945,31]
[322305701,1712943068393,-500.0,0.00047945,31]
[322305702,1712943068403,-500.0,0.00047945,31]
[322305703,1712943068412,-500.0,0.00047945,31]
[322305704,1712943068422,-218.95011364,0.00047945,31]
[322305705,1712943068434,-500.0,0.00047945,31]
[322305706,1712943068446,-500.0,0.00047945,31]
[322305707,1712943068458,-500.0,0.00047945,31]
[322305708,1712943068467,-500.0,0.00047945,31]
[322305709,1712943068477,-500.0,0.00047945,31]
[322305710,1712943068488,-500.0,0.00047945,31]
[322305711,1712943068498,-500.0,0.00047945,31]
[322305712,1712943068510,-500.0,0.00047945,31]
[322305713,1712943068521,-500.0,0.00047945,31]
[322305714,1712943068531,-500.0,0.00047945,31]
[322305715,1712943068541,-500.0,0.00047945,31]
[322305716,1712943068552,-500.0,0.00047945,31]
[322305717,1712943068563,-503.14,0.00047945,31]
[322305718,1712943068695,-500.0,0.00047945,31]
[322305719,1712943068706,-500.0,0.00047945,31]
[322305720,1712943068716,-500.0,0.00047945,31]
[322305721,1712943068728,-500.0,0.00047945,31]
[322305722,1712943068738,-264.21253168,0.00047945,31]
[322305723,1712943068747,-500.0,0.00047945,31]
[322305724,1712943068756,-500.0,0.00047945,31]
[322305725,1712943068765,-500.0,0.00047945,31]
[322305726,1712943068775,-500.0,0.00047945,31]
[322305727,1712943068784,-500.0,0.00047945,31]
[322305728,1712943068793,-500.0,0.00047945,31]
[322305729,1712943068803,-500.0,0.00047945,31]
[322305730,1712943068812,-500.0,0.00047945,31]
[322305731,1712943068822,-500.0,0.00047945,31]
[322305732,1712943068831,-547.94,0.00047945,31]
[322305733,1712943068841,-500.0,0.00047945,31]
[322305734,1712943068850,-500.0,0.00047945,31]
[322305735,1712943068859,-500.0,0.00047945,31]
[322305736,1712943068869,-500.0,0.00047945,2]
[322305737,1712943068878,-500.0,0.00047945,31]
[322305738,1712943068888,-500.0,0.00047945,31]
[322305739,1712943068897,-500.0,0.00047945,31]
[322305740,1712943068907,-500.0,0.00047945,31]
[322305741,1712943068916,-500.0,0.00047945,31]
[322305742,1712943068926,-500.0,0.00047945,31]
[322305743,1712943068939,-500.0,0.00047945,31]
[322305744,1712943068952,-500.0,0.00047945,31]
[322305745,1712943068961,-506.79,0.00047945,31]
[322305746,1712943068974,-500.0,0.00047945,31]
[322305747,1712943068983,-500.0,0.00047945,31]
[322305748,1712943068993,-500.0,0.00047945,31]
[322305749,1712943069003,-500.0,0.00047945,31]
[322305750,1712943069012,-753.97,0.00047945,31]
[322305751,1712943069022,-500.0,0.00047945,31]
[322305752,1712943069031,-761.02,0.00047945,31]
[322305753,1712943069040,-1116.32,0.00047945,31]
[322305754,1712943069049,-500.0,0.00047945,31]
[322305755,1712943069058,-1571.11,0.00047945,31]
[322305756,1712943069068,-525.84,0.00047945,31]
[322305757,1712943069078,-500.0,0.00047945,31]
[322305758,1712943069088,-771.53,0.00047945,31]
[322305759,1712943069098,-688.0,0.00047945,31]
[322305760,1712943069108,-500.0,0.00047945,31]
[322305761,1712943069117,-768.13,0.00047945,31]
[322305762,1712943069127,-4824.5,0.00047945,31]
[322305763,1712943069137,-500.0,0.00047945,31]
[322305764,1712943069147,-1199.86,0.00047945,31]
[322305765,1712943069156,-500.0,0.00047945,31]
[322305766,1712943069166,-500.0,0.00047945,31]
[322305767,1712943069175,-566.63224137,0.00047945,31]
[322305768,1712943069187,-500.0,0.00047945,31]
[322305769,1712943069197,-575.91,0.00047945,31]
[322305770,1712943069209,-500.0,0.00047945,31]
[322305771,1712943069220,-585.03,0.00047945,31]
[322305772,1712943069230,-1185.31,0.00047945,31]
[322305773,1712943069239,-664.52,0.00047945,31]
[322305774,1712943069248,-690.39,0.00047945,31]
[322305775,1712943069258,-500.0,0.00047945,31]
[322305776,1712943069268,-2922.2,0.00047945,31]
[322305777,1712943069278,-500.0,0.00047945,31]
[322305778,1712943069288,-1072.1,0.00047945,31]
[322305779,1712943069297,-630.53,0.00047945,31]
[322305780,1712943069307,-500.0,0.00047945,31]
[322305781,1712943069320,-817.79,0.00047945,31]
[322305782,1712943069331,-500.0,0.00047945,31]
[322305783,1712943069341,-500.0,0.00047945,31]
[322305784,1712943069351,-500.0,0.00047945,31]
[322305785,1712943069362,-11147.25,0.00047945,31]
[322305786,1712943069373,-2674.46,0.00047945,31]
[322305787,1712943069383,-1664.34,0.00047945,31]
[322305788,1712943069392,-500.0,0.00047945,31]
[322305789,1712943069402,-500.0,0.00047945,31]
[322305790,1712943069412,-500.0,0.00047945,31]
[322305791,1712943069422,-1490.98,0.00047945,31]
[322305792,1712943069434,-500.0,0.00047945,31]
[322305793,1712943069444,-500.0,0.00047945,31]
[322305794,1712943069453,-532.17,0.00047945,31]
[322305795,1712943069464,-2085.05,0.00047945,31]
[322305796,1712943069474,-500.0,0.00047945,31]
[322305797,1712943069484,-500.0,0.00047945,31]
[322305798,1712943069493,-842.21,0.00047945,31]
[322305799,1712943069506,-500.0,0.00047945,31]
[322305800,1712943069515,-500.0,0.00047945,21]
[322305801,1712943069524,-707.65,0.00047945,31]
[322305802,1712943069533,-500.0,0.00047945,31]
[322305803,1712943069543,-500.0,0.00047945,31]
[322305804,1712943069552,-500.0,0.00047945,31]
[322305805,1712943069563,-500.0,0.00047945,31]
[322305806,1712943069573,-754.73,0.00047945,31]
[322305807,1712943069583,-651.77,0.00047945,31]
[322305808,1712943069593,-500.0,0.00047945,31]
[322305809,1712943069602,-930.65,0.00047945,31]
[322305810,1712943069611,-566.71,0.00047945,31]
[322305811,1712943069621,-500.0,0.00047945,31]
[322305812,1712943069631,-500.0,0.00047945,31]
[322305813,1712943069641,-500.0,0.00047945,31]
[322305814,1712943069652,-500.0,0.00047945,31]
[322305815,1712943069661,-500.0,0.00047945,31]
[322305816,1712943069671,-500.0,0.00047945,31]
[322305817,1712943069685,-500.0,0.00047945,31]
[322305818,1712943069696,-500.0,0.00047945,31]
[322305819,1712943069708,-500.0,0.00047945,31]
[322305820,1712943069719,-500.0,0.00047945,7]
[322305821,1712943069729,-500.0,0.00047945,31]
[322305822,1712943069740,-500.0,0.00047945,31]
[322305823,1712943069750,-558.76,0.00047945,31]
[322305824,1712943069760,-500.0,0.00047945,31]
[322305825,1712943069770,-2201.95,0.00047945,31]
[322305826,1712943069780,-500.0,0.00047945,31]
[322305827,1712943069790,-500.0,0.00047945,31]
[322305828,1712943069800,-500.0,0.00047945,31]
[322305829,1712943069811,-500.0,0.00047945,31]
[322305830,1712943069822,-39956.33535882,0.00047945,10]
[322305831,1712943069833,-39956.33535882,0.00047945,10]
[322305832,1712943069843,-19047.9273855,0.00047945,10]
[322305833,1712943070028,-824.62394576,0.00047945,10]
[322305834,1712943070041,-846.06720005,0.00047945,10]
[322305835,1712943070053,-313.34340016,0.00047945,10]
[322305836,1712943070066,-3840.38512445,0.00047945,10]
[322305837,1712943070078,-2099.9807927,0.00047945,10]
[322305838,1712943070090,-4181.06906991,0.00047945,10]
[322305839,1712943070117,-563.1821144,0.00022,2]
[322305840,1712943070127,-308.29459239,0.00047945,10]
[322305841,1712943070139,-1944.97412781,0.00047945,10]
[322305842,1712943070150,-3887.01912148,0.00047945,10]
[322305843,1712943070162,-808.714241,0.00047945,10]
[322305844,1712943070174,-1853.93635761,0.00047945,10]
[322305845,1712943070186,-4966.36364239,0.00047945,10]
[322305846,1712943070200,-34989.97171643,0.00047945,10]
[322305847,1712943070209,-39956.33535882,0.00047945,10]
[322305848,1712943070218,-39956.33535882,0.00047945,10]
[322305849,1712943070229,-39956.33535882,0.00047945,10]
[322305850,1712943070238,-39956.33535882,0.00047945,10]
[322305851,1712943070247,-39956.33535882,0.00047945,10]
[322305852,1712943070256,-39956.33435882,0.00047945,10]
[322305853,1712943070265,-500.0,0.00047945,31]
[322305854,1712943070274,-1733.44,0.00047945,31]
[322305855,1712943070283,-500.0,0.00047945,31]
[322305856,1712943070292,-500.0,0.00047945,31]
[322305857,1712943070301,-1511.61,0.00047945,31]
[322305858,1712943070311,-500.0,0.00047945,31]
[322305859,1712943070320,-1035.33985301,0.00047945,10]
[322305860,1712943070430,-500.0,0.00047945,31]
[322305861,1712943070444,-500.0,0.00047945,31]
[322305862,1712943070456,-500.0,0.00047945,31]
[322305863,1712943070466,-500.0,0.00047945,31]
[322305864,1712943070479,-1300.84,0.00047945,31]
[322305865,1712943070493,-500.0,0.00047945,31]
[322305866,1712943070507,-558.49,0.00047945,31]
[322305867,1712943070517,-959.18,0.00047945,31]
[322305868,1712943070527,-500.0,0.00047945,31]
[322305869,1712943070536,-921.12,0.00047945,31]
[322305870,1712943070547,-500.0,0.00047945,31]
[322305871,1712943070559,-500.0,0.00047945,31]
[322305872,1712943070568,-500.0,0.00047945,31]
[322305873,1712943070578,-802.81,0.00047945,31]
[322305874,1712943070587,-500.0,0.00047945,31]
[322305875,1712943070596,-2186.79,0.00047945,31]
[322305876,1712943070605,-500.0,0.00047945,31]
[322305877,1712943070614,-1066.91,0.00047945,31]
[322305878,1712943070624,-2219.87,0.00047945,31]
[322305879,1712943070634,-500.0,0.00047945,31]
[322305880,1712943070644,-500.0,0.00047945,31]
[322305881,1712943070654,-500.0,0.00047945,31]
[322305882,1712943070663,-593.49,0.00047945,31]
[322305883,1712943070672,-500.0,0.00047945,31]
[322305884,1712943070681,-6085.26,0.00047945,31]
[322305885,1712943070696,-500.0,0.00047945,31]
[322305886,1712943070706,-500.0,0.00047945,31]
[322305887,1712943070715,-500.0,0.00047945,31]
[322305888,1712943070727,-500.0,0.00047945,31]
[322305889,1712943070737,-500.0,0.00047945,31]
[322305890,1712943070747,-500.0,0.00047945,31]
[322305891,1712943070756,-500.0,0.00047945,31]
[322305892,1712943070765,-500.0,0.00047945,31]
[322305893,1712943070774,-683.18,0.00047945,31]
[322305894,1712943070782,-500.0,0.00047945,31]
[322305895,1712943070791,-1289.09,0.00047945,31]
[322305896,1712943070801,-2118.68,0.00047945,31]
[322305897,1712943070811,-500.0,0.00047945,31]
[322305898,1712943070820,-842.4,0.00047945,31]
[322305899,1712943070830,-542.64,0.00047945,31]
[322305900,1712943070840,-500.0,0.00047945,31]
[322305901,1712943070850,-235.94,0.00047945,31]
[322305902,1712943070860,-674.83,0.00047945,31]
[322305903,1712943070869,-1964.08,0.00047945,31]
[322305904,1712943070879,-500.0,0.00047945,31]
[322305905,1712943070889,-500.0,0.00047945,31]
[322305906,1712943070898,-2132.39,0.00047945,31]
[322305907,1712943070908,-700.0,0.0004797,3]
[322305908,1712943070917,-158.43882464,0.00047987,30]
[322305909,1712943070926,-204.8,0.00048,120]
[322305910,1712943070939,-151.0,0.00048,120]
[322305911,1712943070948,-293.86921,0.00048,25]
[322305912,1712943070958,-150.0,0.00048,9]
[322305913,1712943070970,-606.0,0.00048088,30]
[322305914,1712943070979,-363.28386581,0.00048088,30]
[322305915,1712943070989,-322.0,0.00048088,30]
[322305916,1712943070997,-411.0,0.00048088,30]
[322305917,1712943071007,-793.76842463,0.00048088,30]
[322305918,1712943071015,-156.33363119,0.0004809,30]
[322305919,1712943071024,-234.01,0.000481,7]
[322305920,1712943071033,-186.55,0.000481,7]
[322305921,1712943071042,-500.0,0.00048115,30]
[322305922,1712943071051,-500.0,0.00048219,31]
[322305923,1712943071061,-500.0,0.00048219,31]
[322305924,1712943071071,-500.0,0.00048219,31]
[322305925,1712943071080,-500.0,0.00048219,31]
[322305926,1712943071089,-500.0,0.00048219,31]
[322305927,1712943071099,-500.0,0.00048219,31]
[322305928,1712943071108,-500.0,0.00048219,31]
[322305929,1712943071117,-502.0,0.00048219,31]
[322305930,1712943071127,-500.0,0.00048219,31]
[322305931,1712943071136,-1000.0,0.00048219,120]
[322305932,1712943071146,-500.0,0.00048219,31]
[322305933,1712943071157,-608.51,0.00048219,31]
[322305934,1712943071166,-536.64,0.00048219,31]
[322305935,1712943071175,-424.88689604,0.00048219,31]